[Event "Titled Tuesday Blitz May 30 Late 2023"]
[White "Goncalves, Davi Sulzbacher"]
[Black "Perez, Maximiliano"]
[WhiteFideId "2154510"]
[BlackFideId "117234"]
[WhiteElo "2182"]
[BlackElo "2344"]
[Result "1-0"]
[Round "07"]
[TimeControl "180+2"]
[Date "2023.05.31"]
[WhiteClock "0:00:11"]
[BlackClock "0:00:16"]

1. Nf3 {[%clk 0:03:00]}  Nf6 {[%clk 0:02:50]} 2. d4 {[%clk 0:03:00]}  g6 {[%clk 0:02:50]} 3. g3 {[%clk 0:03:00]}  Bg7 {[%clk 0:02:51]} 4. Bg2 {[%clk 0:03:00]}  O-O {[%clk 0:02:52]} 5. O-O {[%clk 0:03:01]}  d6 {[%clk 0:02:52]} 6. c4 {[%clk 0:03:01]}  Nbd7 {[%clk 0:02:52]} 7. Nc3 {[%clk 0:03:02]}  e5 {[%clk 0:02:53]} 8. e4 {[%clk 0:03:00]}  exd4 {[%clk 0:02:54]} 9. Nxd4 {[%clk 0:03:00]}  Re8 {[%clk 0:02:54]} 10. Re1 {[%clk 0:02:59]}  Nc5 {[%clk 0:02:54]} 11. h3 {[%clk 0:02:49]}  a5 {[%clk 0:02:52]} 12. Ndb5 {[%clk 0:02:36]}  Bd7 {[%clk 0:02:50]} 13. Bf4 {[%clk 0:02:24]}  Bc6 {[%clk 0:02:49]} 14. Qc2 {[%clk 0:02:07]}  Qd7 {[%clk 0:02:37]} 15. Rad1 {[%clk 0:01:59]}  Re7 {[%clk 0:02:32]} 16. Nxc7 {[%clk 0:01:56]}  Qxc7 {[%clk 0:02:03]} 17. Bxd6 {[%clk 0:01:55]}  Qb6 {[%clk 0:02:00]} 18. Bxe7 {[%clk 0:01:55]}  Re8 {[%clk 0:01:59]} 19. Nd5 {[%clk 0:01:44]}  Bxd5 {[%clk 0:01:52]} 20. exd5 {[%clk 0:01:45]}  Nfd7 {[%clk 0:01:50]} 21. b3 {[%clk 0:01:26]}  Na6 {[%clk 0:01:46]} 22. Ba3 {[%clk 0:01:12]}  Rc8 {[%clk 0:01:32]} 23. Bb2 {[%clk 0:01:05]}  Bf8 {[%clk 0:01:29]} 24. Qc3 {[%clk 0:01:02]}  f6 {[%clk 0:01:29]} 25. Re6 {[%clk 0:00:57]}  Qc7 {[%clk 0:01:25]} 26. d6 {[%clk 0:00:51]}  Qd8 {[%clk 0:01:23]} 27. Bxb7 {[%clk 0:00:44]}  Nac5 {[%clk 0:01:22]} 28. Bd5 {[%clk 0:00:45]}  Kg7 {[%clk 0:01:04]} 29. Rde1 {[%clk 0:00:29]}  Nxe6 {[%clk 0:01:01]} 30. Bxe6 {[%clk 0:00:25]}  Rc6 {[%clk 0:00:29]} 31. Bxd7 {[%clk 0:00:25]}  Rxd6 {[%clk 0:00:30]} 32. Be6 {[%clk 0:00:19]}  h5 {[%clk 0:00:28]} 33. Bd5 {[%clk 0:00:18]}  h4 {[%clk 0:00:28]} 34. g4 {[%clk 0:00:16]}  Be7 {[%clk 0:00:26]} 35. g5 {[%clk 0:00:15]}  Kf8 {[%clk 0:00:22]} 36. Qf3 {[%clk 0:00:15]}  Kg7 {[%clk 0:00:21]} 37. Be6 {[%clk 0:00:13]}  Qf8 {[%clk 0:00:20]} 38. Qf4 {[%clk 0:00:12]}  Ra6 {[%clk 0:00:18]} 39. Qxh4 {[%clk 0:00:11]}  a4 {[%clk 0:00:16]} 40. Qh6# {[%clk 0:00:11]} 1-0


[Site "https://www.chess.com"]

[Event "Titled Tuesday Blitz May 30 Late 2023"]
[White "MariusBieliauskas"]
[Black "Krishnan, Varun"]
[BlackFideId "5054508"]
[WhiteElo "2461"]
[BlackElo "2595"]
[Result "0-1"]
[Round "07"]
[TimeControl "180+2"]
[Date "2023.05.31"]
[WhiteClock "0:00:01"]
[BlackClock "0:00:04"]

1. d4 {[%clk 0:02:59]}  Nf6 {[%clk 0:02:58]} 2. c4 {[%clk 0:02:59]}  e6 {[%clk 0:02:59]} 3. Nf3 {[%clk 0:02:57]}  b6 {[%clk 0:02:58]} 4. g3 {[%clk 0:02:56]}  Bb7 {[%clk 0:02:58]} 5. Bg2 {[%clk 0:02:54]}  d5 {[%clk 0:02:57]} 6. Ne5 {[%clk 0:02:52]}  Be7 {[%clk 0:02:57]} 7. Qa4+ {[%clk 0:02:51]}  c6 {[%clk 0:02:54]} 8. cxd5 {[%clk 0:02:49]}  exd5 {[%clk 0:02:54]} 9. O-O {[%clk 0:02:49]}  O-O {[%clk 0:02:54]} 10. Nc3 {[%clk 0:02:49]}  Nfd7 {[%clk 0:02:45]} 11. Nd3 {[%clk 0:02:43]}  Bd6 {[%clk 0:02:39]} 12. e4 {[%clk 0:02:42]}  dxe4 {[%clk 0:02:38]} 13. Nxe4 {[%clk 0:02:41]}  Be7 {[%clk 0:02:37]} 14. Ne5 {[%clk 0:02:29]}  Nxe5 {[%clk 0:02:34]} 15. dxe5 {[%clk 0:02:29]}  Nd7 {[%clk 0:02:32]} 16. Rd1 {[%clk 0:02:26]}  Qc7 {[%clk 0:02:32]} 17. Nd6 {[%clk 0:02:10]}  Nxe5 {[%clk 0:02:22]} 18. Nxb7 {[%clk 0:02:09]}  Qxb7 {[%clk 0:02:20]} 19. Bf4 {[%clk 0:02:07]}  Qc7 {[%clk 0:02:18]} 20. Rac1 {[%clk 0:01:57]}  Rad8 {[%clk 0:01:07]} 21. Re1 {[%clk 0:01:48]}  Bd6 {[%clk 0:01:04]} 22. Bxe5 {[%clk 0:01:38]}  Bxe5 {[%clk 0:01:03]} 23. Rxc6 {[%clk 0:01:37]}  Qb8 {[%clk 0:01:03]} 24. Qb5 {[%clk 0:01:35]}  Bd4 {[%clk 0:00:56]} 25. b3 {[%clk 0:01:19]}  Bc5 {[%clk 0:00:56]} 26. b4 {[%clk 0:01:12]}  Bd4 {[%clk 0:00:53]} 27. Qc4 {[%clk 0:01:12]}  Bf6 {[%clk 0:00:47]} 28. Bd5 {[%clk 0:01:05]}  h6 {[%clk 0:00:36]} 29. h4 {[%clk 0:01:05]}  Rd7 {[%clk 0:00:32]} 30. Qe4 {[%clk 0:00:55]}  Re7 {[%clk 0:00:27]} 31. Qb1 {[%clk 0:00:48]}  Qd8 {[%clk 0:00:25]} 32. Rxe7 {[%clk 0:00:33]}  Qxe7 {[%clk 0:00:24]} 33. Qe4 {[%clk 0:00:25]}  Qxe4 {[%clk 0:00:22]} 34. Bxe4 {[%clk 0:00:25]}  Rd8 {[%clk 0:00:15]} 35. Rc2 {[%clk 0:00:20]}  g6 {[%clk 0:00:14]} 36. Kg2 {[%clk 0:00:19]}  Rd4 {[%clk 0:00:13]} 37. Kf3 {[%clk 0:00:13]}  Rxb4 {[%clk 0:00:13]} 38. Bd5 {[%clk 0:00:13]}  Rd4 {[%clk 0:00:11]} 39. Rc8+ {[%clk 0:00:11]}  Kg7 {[%clk 0:00:10]} 40. Bb3 {[%clk 0:00:11]}  Rd7 {[%clk 0:00:10]} 41. Kg4 {[%clk 0:00:09]}  Bd4 {[%clk 0:00:10]} 42. f4 {[%clk 0:00:09]}  h5+ {[%clk 0:00:10]} 43. Kf3 {[%clk 0:00:09]}  Bc5 {[%clk 0:00:10]} 44. Ke4 {[%clk 0:00:03]}  Rd4+ {[%clk 0:00:09]} 45. Kf3 {[%clk 0:00:03]}  Rd3+ {[%clk 0:00:09]} 46. Kg2 {[%clk 0:00:03]}  Rd2+ {[%clk 0:00:08]} 47. Kf3 {[%clk 0:00:04]}  Rf2+ {[%clk 0:00:08]} 48. Ke4 {[%clk 0:00:04]}  Re2+ {[%clk 0:00:07]} 49. Kf3 {[%clk 0:00:04]}  Re3+ {[%clk 0:00:08]} 50. Kg2 {[%clk 0:00:04]}  a5 {[%clk 0:00:07]} 51. Rc7 {[%clk 0:00:04]}  Be7 {[%clk 0:00:04]} 52. Rb7 {[%clk 0:00:03]}  a4 {[%clk 0:00:02]} 53. Bxa4 {[%clk 0:00:02]}  Re2+ {[%clk 0:00:01]} 54. Kf3 {[%clk 0:00:02]}  Rxa2 {[%clk 0:00:02]} 55. Bb3 {[%clk 0:00:02]}  Ra3 {[%clk 0:00:02]} 56. Rxb6 {[%clk 0:00:02]}  Bf6 {[%clk 0:00:01]} 57. Rb7 {[%clk 0:00:02]}  Bd4 {[%clk 0:00:02]} 58. Rxf7+ {[%clk 0:00:01]}  Kh6 {[%clk 0:00:03]} 59. Rb7 {[%clk 0:00:01]}  Bg7 {[%clk 0:00:04]} 0-1


[Site "https://www.chess.com"]

[Event "Titled Tuesday Blitz May 30 Late 2023"]
[White "Castaneda, Jhon David"]
[Black "Buchenau, Frank"]
[WhiteFideId "4405048"]
[BlackFideId "4604350"]
[WhiteElo "2086"]
[BlackElo "2157"]
[Result "1-0"]
[Round "07"]
[TimeControl "180+2"]
[Date "2023.05.31"]
[WhiteClock "0:00:23"]
[BlackClock "0:00:03"]

1. d4 {[%clk 0:03:00]}  e6 {[%clk 0:02:59]} 2. Nf3 {[%clk 0:03:00]}  Nf6 {[%clk 0:02:58]} 3. c4 {[%clk 0:03:00]}  b6 {[%clk 0:02:59]} 4. Nc3 {[%clk 0:03:01]}  Bb4 {[%clk 0:02:56]} 5. Bg5 {[%clk 0:03:00]}  h6 {[%clk 0:02:55]} 6. Bf4 {[%clk 0:03:00]}  Bb7 {[%clk 0:02:55]} 7. Qc2 {[%clk 0:03:00]}  c5 {[%clk 0:02:49]} 8. dxc5 {[%clk 0:02:59]}  bxc5 {[%clk 0:02:47]} 9. e3 {[%clk 0:02:58]}  Ne4 {[%clk 0:02:33]} 10. Bd3 {[%clk 0:02:57]}  f5 {[%clk 0:02:21]} 11. O-O {[%clk 0:02:53]}  Bxc3 {[%clk 0:02:21]} 12. bxc3 {[%clk 0:02:52]}  O-O {[%clk 0:02:18]} 13. Rab1 {[%clk 0:02:47]}  Bc6 {[%clk 0:02:09]} 14. Ne5 {[%clk 0:02:42]}  g5 {[%clk 0:01:59]} 15. Nxc6 {[%clk 0:02:34]}  Nxc6 {[%clk 0:01:59]} 16. Bxe4 {[%clk 0:02:29]}  fxe4 {[%clk 0:01:48]} 17. Bd6 {[%clk 0:02:26]}  Rf5 {[%clk 0:01:44]} 18. Qxe4 {[%clk 0:02:24]}  Qf6 {[%clk 0:01:39]} 19. Rb7 {[%clk 0:02:11]}  Rd8 {[%clk 0:01:31]} 20. Bc7 {[%clk 0:01:45]}  Rf8 {[%clk 0:01:27]} 21. Bg3 {[%clk 0:01:41]}  d5 {[%clk 0:01:12]} 22. cxd5 {[%clk 0:01:35]}  exd5 {[%clk 0:01:13]} 23. Qa4 {[%clk 0:01:22]}  h5 {[%clk 0:01:00]} 24. h4 {[%clk 0:01:21]}  d4 {[%clk 0:00:29]} 25. Rc7 {[%clk 0:00:51]}  Ne5 {[%clk 0:00:17]} 26. cxd4 {[%clk 0:00:46]}  cxd4 {[%clk 0:00:11]} 27. Qxd4 {[%clk 0:00:39]}  gxh4 {[%clk 0:00:11]} 28. Bxh4 {[%clk 0:00:33]}  Qg6 {[%clk 0:00:08]} 29. Bg3 {[%clk 0:00:30]}  Ng4 {[%clk 0:00:03]} 30. Qc4+ {[%clk 0:00:27]}  Kh8 {[%clk 0:00:03]} 31. e4 {[%clk 0:00:23]} 1-0


[Site "https://www.chess.com"]

[Event "Titled Tuesday Blitz May 30 Late 2023"]
[White "Fiorito, Francisco"]
[Black "Papayan, Oleg"]
[WhiteFideId "180165"]
[BlackFideId "4193911"]
[WhiteElo "2341"]
[BlackElo "2171"]
[Result "0-1"]
[Round "07"]
[TimeControl "180+2"]
[Date "2023.05.31"]
[WhiteClock "0:01:11"]
[BlackClock "0:00:03"]

1. e4 {[%clk 0:03:00]}  e5 {[%clk 0:02:59]} 2. Nf3 {[%clk 0:02:59]}  Nc6 {[%clk 0:03:00]} 3. Bb5 {[%clk 0:02:58]}  Nf6 {[%clk 0:03:00]} 4. O-O {[%clk 0:02:58]}  Nxe4 {[%clk 0:03:01]} 5. Re1 {[%clk 0:02:53]}  Nd6 {[%clk 0:03:01]} 6. Nxe5 {[%clk 0:02:48]}  Be7 {[%clk 0:02:59]} 7. Bf1 {[%clk 0:02:43]}  Nxe5 {[%clk 0:02:59]} 8. Rxe5 {[%clk 0:02:43]}  O-O {[%clk 0:02:59]} 9. d4 {[%clk 0:02:43]}  Bf6 {[%clk 0:03:00]} 10. Re1 {[%clk 0:02:43]}  Re8 {[%clk 0:03:00]} 11. c3 {[%clk 0:02:43]}  Rxe1 {[%clk 0:02:58]} 12. Qxe1 {[%clk 0:02:43]}  Ne8 {[%clk 0:02:58]} 13. Bd3 {[%clk 0:02:43]}  d5 {[%clk 0:02:57]} 14. Bf4 {[%clk 0:02:43]}  g6 {[%clk 0:02:52]} 15. Nd2 {[%clk 0:02:43]}  Ng7 {[%clk 0:02:51]} 16. Nf3 {[%clk 0:02:44]}  Bf5 {[%clk 0:02:46]} 17. Bxf5 {[%clk 0:02:42]}  Nxf5 {[%clk 0:02:47]} 18. Qd2 {[%clk 0:02:43]}  c6 {[%clk 0:02:33]} 19. Re1 {[%clk 0:02:42]}  Qd7 {[%clk 0:02:21]} 20. Ne5 {[%clk 0:02:42]}  Bxe5 {[%clk 0:01:54]} 21. Bxe5 {[%clk 0:02:42]}  Re8 {[%clk 0:01:54]} 22. h3 {[%clk 0:02:37]}  Re6 {[%clk 0:01:42]} 23. Bf4 {[%clk 0:02:31]}  f6 {[%clk 0:01:36]} 24. f3 {[%clk 0:02:24]}  Kf7 {[%clk 0:01:34]} 25. Kf2 {[%clk 0:02:24]}  Rxe1 {[%clk 0:01:33]} 26. Qxe1 {[%clk 0:02:24]}  Qe6 {[%clk 0:01:34]} 27. Qxe6+ {[%clk 0:02:22]}  Kxe6 {[%clk 0:01:35]} 28. g4 {[%clk 0:02:22]}  Ne7 {[%clk 0:01:32]} 29. Ke3 {[%clk 0:02:20]}  Nc8 {[%clk 0:01:11]} 30. a4 {[%clk 0:02:17]}  a6 {[%clk 0:01:00]} 31. Bc7 {[%clk 0:02:14]}  Kd7 {[%clk 0:01:00]} 32. Bg3 {[%clk 0:02:13]}  Ke6 {[%clk 0:00:59]} 33. h4 {[%clk 0:02:13]}  h5 {[%clk 0:00:58]} 34. b3 {[%clk 0:02:12]}  Ne7 {[%clk 0:00:56]} 35. Bc7 {[%clk 0:02:11]}  Kd7 {[%clk 0:00:55]} 36. Ba5 {[%clk 0:02:11]}  Nc8 {[%clk 0:00:50]} 37. Bb4 {[%clk 0:02:11]}  Ke6 {[%clk 0:00:48]} 38. Kf4 {[%clk 0:02:10]}  Nb6 {[%clk 0:00:47]} 39. Bc5 {[%clk 0:02:10]}  Nd7 {[%clk 0:00:47]} 40. Ba3 {[%clk 0:02:09]}  Nb6 {[%clk 0:00:47]} 41. a5 {[%clk 0:02:08]}  Nd7 {[%clk 0:00:47]} 42. Bb4 {[%clk 0:02:08]}  Nb8 {[%clk 0:00:45]} 43. c4 {[%clk 0:02:08]}  Nd7 {[%clk 0:00:45]} 44. Ba3 {[%clk 0:02:06]}  Nb8 {[%clk 0:00:44]} 45. Bc5 {[%clk 0:02:07]}  Nd7 {[%clk 0:00:44]} 46. Ba7 {[%clk 0:02:07]}  Nf8 {[%clk 0:00:45]} 47. Bb8 {[%clk 0:02:07]}  Nd7 {[%clk 0:00:45]} 48. Bc7 {[%clk 0:02:07]}  Nf8 {[%clk 0:00:45]} 49. c5 {[%clk 0:02:07]}  Nh7 {[%clk 0:00:41]} 50. Bd6 {[%clk 0:02:04]}  g5+ {[%clk 0:00:39]} 51. Kg3 {[%clk 0:02:04]}  gxh4+ {[%clk 0:00:38]} 52. Kxh4 {[%clk 0:02:05]}  hxg4 {[%clk 0:00:39]} 53. Kxg4 {[%clk 0:02:05]}  Ng5 {[%clk 0:00:39]} 54. Bf4 {[%clk 0:02:04]}  Nf7 {[%clk 0:00:39]} 55. Bd2 {[%clk 0:02:01]}  f5+ {[%clk 0:00:33]} 56. Kh5 {[%clk 0:01:59]}  Kf6 {[%clk 0:00:33]} 57. Bf4 {[%clk 0:02:00]}  Kg7 {[%clk 0:00:19]} 58. Bg5 {[%clk 0:01:47]}  f4 {[%clk 0:00:12]} 59. Bxf4 {[%clk 0:01:46]}  Kf6 {[%clk 0:00:12]} 60. Kg4 {[%clk 0:01:45]}  Kg6 {[%clk 0:00:10]} 61. Bc7 {[%clk 0:01:40]}  Nh6+ {[%clk 0:00:09]} 62. Kf4 {[%clk 0:01:39]}  Kf6 {[%clk 0:00:10]} 63. Be5+ {[%clk 0:01:38]}  Ke6 {[%clk 0:00:10]} 64. Ke3 {[%clk 0:01:29]}  Nf5+ {[%clk 0:00:11]} 65. Kf2 {[%clk 0:01:30]}  Ne7 {[%clk 0:00:10]} 66. Bf4 {[%clk 0:01:30]}  Nf5 {[%clk 0:00:11]} 67. Be3 {[%clk 0:01:30]}  Ne7 {[%clk 0:00:12]} 68. f4 {[%clk 0:01:31]}  Kf5 {[%clk 0:00:12]} 69. Kf3 {[%clk 0:01:32]}  Ng6 {[%clk 0:00:13]} 70. Bc1 {[%clk 0:01:32]}  Nf8 {[%clk 0:00:13]} 71. Kg2 {[%clk 0:01:31]}  Ne6 {[%clk 0:00:14]} 72. Be3 {[%clk 0:01:30]}  Ke4 {[%clk 0:00:14]} 73. Kf2 {[%clk 0:01:29]}  Nxf4 {[%clk 0:00:14]} 74. b4 {[%clk 0:01:25]}  Ne6 {[%clk 0:00:13]} 75. Ke2 {[%clk 0:01:23]}  Nxd4+ {[%clk 0:00:13]} 76. Kd2 {[%clk 0:01:24]}  Ne6 {[%clk 0:00:13]} 77. Bh6 {[%clk 0:01:23]}  Kd4 {[%clk 0:00:12]} 78. Kc2 {[%clk 0:01:22]}  Kc4 {[%clk 0:00:13]} 79. Bd2 {[%clk 0:01:22]}  Nd4+ {[%clk 0:00:12]} 80. Kb2 {[%clk 0:01:23]}  Nb5 {[%clk 0:00:12]} 81. Kc2 {[%clk 0:01:22]}  Nd4+ {[%clk 0:00:12]} 82. Kb2 {[%clk 0:01:22]}  Nf3 {[%clk 0:00:12]} 83. Bf4 {[%clk 0:01:19]}  d4 {[%clk 0:00:12]} 84. Kc2 {[%clk 0:01:18]}  Nh4 {[%clk 0:00:12]} 85. Bd6 {[%clk 0:01:17]}  Nf5 {[%clk 0:00:12]} 86. Kd2 {[%clk 0:01:18]}  Ne3 {[%clk 0:00:11]} 87. b5 {[%clk 0:01:13]}  axb5 {[%clk 0:00:09]} 88. Ke2 {[%clk 0:01:13]}  Nd5 {[%clk 0:00:09]} 89. Kd2 {[%clk 0:01:13]}  Nc3 {[%clk 0:00:07]} 90. Kc2 {[%clk 0:01:12]}  Ne4 {[%clk 0:00:07]} 91. Bf4 {[%clk 0:01:11]}  Nxc5 {[%clk 0:00:07]} 92. Kb2 {[%clk 0:01:10]}  Nb3 {[%clk 0:00:07]} 93. Bc7 {[%clk 0:01:08]}  Kb4 {[%clk 0:00:05]} 94. Bd6+ {[%clk 0:01:09]}  c5 {[%clk 0:00:06]} 95. a6 {[%clk 0:01:09]}  bxa6 {[%clk 0:00:06]} 96. Ka2 {[%clk 0:01:10]}  Kc4 {[%clk 0:00:05]} 97. Kb2 {[%clk 0:01:10]}  a5 {[%clk 0:00:06]} 98. Kc2 {[%clk 0:01:10]}  a4 {[%clk 0:00:07]} 99. Kb2 {[%clk 0:01:11]}  b4 {[%clk 0:00:07]} 100. Bf4 {[%clk 0:01:12]}  a3+ {[%clk 0:00:07]} 101. Ka2 {[%clk 0:01:12]}  d3 {[%clk 0:00:06]} 102. Kb1 {[%clk 0:01:12]}  Nd4 {[%clk 0:00:06]} 103. Ka2 {[%clk 0:01:13]}  Nc2 {[%clk 0:00:06]} 104. Kb1 {[%clk 0:01:11]}  b3 {[%clk 0:00:07]} 105. Be5 {[%clk 0:01:11]}  d2 {[%clk 0:00:06]} 106. Bb2 {[%clk 0:01:10]}  d1=Q+ {[%clk 0:00:05]} 107. Bc1 {[%clk 0:01:10]}  a2+ {[%clk 0:00:04]} 108. Kb2 {[%clk 0:01:11]}  a1=Q# {[%clk 0:00:03]} 0-1


[Site "https://www.chess.com"]

[Event "Titled Tuesday Blitz May 30 Late 2023"]
[White "Karas, Marek"]
[Black "Poltorak, Sebastian"]
[WhiteFideId "14928558"]
[BlackFideId "1199498"]
[WhiteElo "2233"]
[BlackElo "2195"]
[Result "0-1"]
[Round "07"]
[TimeControl "180+2"]
[Date "2023.05.31"]
[WhiteClock "0:00:11"]
[BlackClock "0:00:22"]

1. a3 {[%clk 0:02:58]}  g6 {[%clk 0:02:54]} 2. e4 {[%clk 0:02:57]}  Bg7 {[%clk 0:02:54]} 3. Nc3 {[%clk 0:02:57]}  c5 {[%clk 0:02:54]} 4. Bc4 {[%clk 0:02:56]}  d6 {[%clk 0:02:51]} 5. d3 {[%clk 0:02:56]}  Nf6 {[%clk 0:02:51]} 6. Nf3 {[%clk 0:02:54]}  O-O {[%clk 0:02:51]} 7. O-O {[%clk 0:02:54]}  e5 {[%clk 0:02:45]} 8. Bg5 {[%clk 0:02:51]}  h6 {[%clk 0:02:44]} 9. Bxf6 {[%clk 0:02:51]}  Bxf6 {[%clk 0:02:44]} 10. Nd5 {[%clk 0:02:52]}  Nc6 {[%clk 0:02:42]} 11. c3 {[%clk 0:02:51]}  Be6 {[%clk 0:02:41]} 12. b4 {[%clk 0:02:49]}  b6 {[%clk 0:02:38]} 13. bxc5 {[%clk 0:02:48]}  dxc5 {[%clk 0:02:37]} 14. Ne1 {[%clk 0:02:34]}  Bg7 {[%clk 0:02:32]} 15. Qe2 {[%clk 0:02:16]}  Qd7 {[%clk 0:02:18]} 16. Nc2 {[%clk 0:02:10]}  f5 {[%clk 0:02:17]} 17. Nde3 {[%clk 0:02:05]}  f4 {[%clk 0:02:13]} 18. Bxe6+ {[%clk 0:02:05]}  Qxe6 {[%clk 0:02:13]} 19. Nd5 {[%clk 0:02:02]}  Rad8 {[%clk 0:01:59]} 20. Qf3 {[%clk 0:01:55]}  Ne7 {[%clk 0:01:54]} 21. c4 {[%clk 0:01:51]}  Kh7 {[%clk 0:01:53]} 22. a4 {[%clk 0:01:49]}  Nc6 {[%clk 0:01:51]} 23. Rfb1 {[%clk 0:01:46]}  Na5 {[%clk 0:01:45]} 24. h3 {[%clk 0:01:44]}  h5 {[%clk 0:01:41]} 25. Ra2 {[%clk 0:01:43]}  Kh6 {[%clk 0:01:39]} 26. h4 {[%clk 0:01:25]}  Bf6 {[%clk 0:01:37]} 27. Qh3 {[%clk 0:01:17]}  Qxh3 {[%clk 0:01:36]} 28. gxh3 {[%clk 0:01:17]}  Bxh4 {[%clk 0:01:36]} 29. Na1 {[%clk 0:01:10]}  g5 {[%clk 0:01:26]} 30. f3 {[%clk 0:01:01]}  Rg8 {[%clk 0:01:18]} 31. Rg2 {[%clk 0:01:00]}  Bg3 {[%clk 0:01:17]} 32. Kf1 {[%clk 0:00:57]}  g4 {[%clk 0:01:15]} 33. hxg4 {[%clk 0:00:57]}  hxg4 {[%clk 0:01:16]} 34. Ke2 {[%clk 0:00:57]}  Kg5 {[%clk 0:01:13]} 35. Nb3 {[%clk 0:00:51]}  Nxb3 {[%clk 0:00:53]} 36. Rxb3 {[%clk 0:00:52]}  Rh8 {[%clk 0:00:53]} 37. a5 {[%clk 0:00:52]}  Rh1 {[%clk 0:00:47]} 38. axb6 {[%clk 0:00:50]}  axb6 {[%clk 0:00:43]} 39. Rxb6 {[%clk 0:00:48]}  Ra8 {[%clk 0:00:42]} 40. Rb2 {[%clk 0:00:41]}  Raa1 {[%clk 0:00:40]} 41. fxg4 {[%clk 0:00:25]}  Rad1 {[%clk 0:00:34]} 42. Rxg3 {[%clk 0:00:21]}  fxg3 {[%clk 0:00:32]} 43. Kf3 {[%clk 0:00:20]}  Rxd3+ {[%clk 0:00:25]} 44. Ne3 {[%clk 0:00:10]}  Re1 {[%clk 0:00:25]} 45. Re2 {[%clk 0:00:10]}  Rxe2 {[%clk 0:00:21]} 46. Kxe2 {[%clk 0:00:10]}  Rxe3+ {[%clk 0:00:22]} 47. Kxe3 {[%clk 0:00:11]}  Kxg4 {[%clk 0:00:22]} 0-1


[Site "https://www.chess.com"]

[Event "Titled Tuesday Blitz May 30 Late 2023"]
[White "Gasparyan, David"]
[Black "Prem, Pranav"]
[WhiteFideId "13311980"]
[BlackFideId "30901057"]
[WhiteElo "2414"]
[BlackElo "1970"]
[Result "0-1"]
[Round "07"]
[TimeControl "180+2"]
[Date "2023.05.31"]
[WhiteClock "0:00:41"]
[BlackClock "0:00:49"]

1. Nf3 {[%clk 0:02:57]}  d5 {[%clk 0:02:59]} 2. g3 {[%clk 0:02:57]}  Nf6 {[%clk 0:02:59]} 3. Bg2 {[%clk 0:02:58]}  e6 {[%clk 0:02:52]} 4. O-O {[%clk 0:02:59]}  c5 {[%clk 0:02:51]} 5. d3 {[%clk 0:02:59]}  Nc6 {[%clk 0:02:47]} 6. Qe1 {[%clk 0:02:58]}  Be7 {[%clk 0:02:46]} 7. e4 {[%clk 0:02:58]}  O-O {[%clk 0:02:43]} 8. c3 {[%clk 0:02:57]}  b6 {[%clk 0:02:42]} 9. Bf4 {[%clk 0:02:49]}  Bb7 {[%clk 0:02:40]} 10. Nbd2 {[%clk 0:02:49]}  Nh5 {[%clk 0:02:34]} 11. Rd1 {[%clk 0:02:30]}  g5 {[%clk 0:02:26]} 12. Be5 {[%clk 0:02:30]}  g4 {[%clk 0:02:23]} 13. exd5 {[%clk 0:02:25]}  exd5 {[%clk 0:02:23]} 14. Nh4 {[%clk 0:02:20]}  Bxh4 {[%clk 0:02:18]} 15. gxh4 {[%clk 0:02:20]}  Re8 {[%clk 0:02:09]} 16. d4 {[%clk 0:02:16]}  f6 {[%clk 0:02:08]} 17. c4 {[%clk 0:02:11]}  Nxd4 {[%clk 0:02:00]} 18. cxd5 {[%clk 0:02:06]}  Rxe5 {[%clk 0:01:59]} 19. Ne4 {[%clk 0:02:06]}  f5 {[%clk 0:01:55]} 20. f4 {[%clk 0:02:00]}  gxf3 {[%clk 0:01:48]} 21. Bxf3 {[%clk 0:01:49]}  Nxf3+ {[%clk 0:01:43]} 22. Rxf3 {[%clk 0:01:50]}  Rxe4 {[%clk 0:01:42]} 23. Qc3 {[%clk 0:01:47]}  Rg4+ {[%clk 0:01:36]} 24. Kf1 {[%clk 0:01:43]}  Ba6+ {[%clk 0:01:33]} 25. Ke1 {[%clk 0:01:40]}  Qd6 {[%clk 0:01:24]} 26. Kd2 {[%clk 0:01:37]}  Rg2+ {[%clk 0:01:21]} 27. Kc1 {[%clk 0:01:37]}  f4 {[%clk 0:01:03]} 28. Re1 {[%clk 0:01:21]}  Qxd5 {[%clk 0:01:00]} 29. Rd1 {[%clk 0:01:01]}  Qc4 {[%clk 0:00:51]} 30. Qxc4+ {[%clk 0:00:52]}  Bxc4 {[%clk 0:00:52]} 31. Rd7 {[%clk 0:00:52]}  Re8 {[%clk 0:00:49]} 32. b3 {[%clk 0:00:40]}  Re1+ {[%clk 0:00:48]} 33. Rd1 {[%clk 0:00:40]}  Rxd1+ {[%clk 0:00:49]} 34. Kxd1 {[%clk 0:00:41]}  Be2+ {[%clk 0:00:49]} 0-1


[Site "https://www.chess.com"]

[Event "Titled Tuesday Blitz May 30 Late 2023"]
[White "Chylewski, Patryk"]
[Black "Sadilek, Peter"]
[WhiteFideId "1186191"]
[BlackFideId "1616439"]
[WhiteElo "2163"]
[BlackElo "2227"]
[Result "1-0"]
[Round "07"]
[TimeControl "180+2"]
[Date "2023.05.31"]
[WhiteClock "0:00:29"]
[BlackClock "0:00:06"]

1. e4 {[%clk 0:03:00]}  g6 {[%clk 0:02:57]} 2. d4 {[%clk 0:03:00]}  Bg7 {[%clk 0:02:57]} 3. Nc3 {[%clk 0:03:00]}  c6 {[%clk 0:02:58]} 4. h3 {[%clk 0:03:00]}  d5 {[%clk 0:02:58]} 5. Nf3 {[%clk 0:03:00]}  Nf6 {[%clk 0:02:58]} 6. e5 {[%clk 0:02:56]}  Ne4 {[%clk 0:02:58]} 7. Bd3 {[%clk 0:02:55]}  Nxc3 {[%clk 0:02:54]} 8. bxc3 {[%clk 0:02:56]}  c5 {[%clk 0:02:52]} 9. O-O {[%clk 0:02:52]}  c4 {[%clk 0:02:50]} 10. Be2 {[%clk 0:02:52]}  Qa5 {[%clk 0:02:50]} 11. Bd2 {[%clk 0:02:49]}  Nc6 {[%clk 0:02:49]} 12. a4 {[%clk 0:02:44]}  O-O {[%clk 0:02:46]} 13. Qb1 {[%clk 0:02:32]}  Qc7 {[%clk 0:02:16]} 14. Bf4 {[%clk 0:02:13]}  Bf5 {[%clk 0:01:59]} 15. Bg3 {[%clk 0:02:09]}  Qd7 {[%clk 0:01:58]} 16. Nh4 {[%clk 0:02:06]}  Be6 {[%clk 0:01:57]} 17. f4 {[%clk 0:02:05]}  f6 {[%clk 0:01:42]} 18. Qb5 {[%clk 0:01:48]}  fxe5 {[%clk 0:01:40]} 19. fxe5 {[%clk 0:01:49]}  Bh6 {[%clk 0:01:33]} 20. Rad1 {[%clk 0:01:38]}  Rxf1+ {[%clk 0:01:24]} 21. Rxf1 {[%clk 0:01:32]}  Bd2 {[%clk 0:01:18]} 22. Be1 {[%clk 0:01:31]}  Bxe1 {[%clk 0:01:12]} 23. Rxe1 {[%clk 0:01:32]}  Rf8 {[%clk 0:00:55]} 24. Rf1 {[%clk 0:01:32]}  Rxf1+ {[%clk 0:00:53]} 25. Bxf1 {[%clk 0:01:33]}  g5 {[%clk 0:00:49]} 26. Nf3 {[%clk 0:01:33]}  h6 {[%clk 0:00:50]} 27. Be2 {[%clk 0:01:30]}  Bf5 {[%clk 0:00:50]} 28. Bd1 {[%clk 0:01:26]}  Kg7 {[%clk 0:00:46]} 29. Qb2 {[%clk 0:01:21]}  Nd8 {[%clk 0:00:44]} 30. a5 {[%clk 0:01:13]}  Ne6 {[%clk 0:00:36]} 31. Nh2 {[%clk 0:01:04]}  Nf4 {[%clk 0:00:29]} 32. Bg4 {[%clk 0:01:02]}  Bxg4 {[%clk 0:00:18]} 33. Nxg4 {[%clk 0:01:03]}  h5 {[%clk 0:00:13]} 34. Ne3 {[%clk 0:01:00]}  h4 {[%clk 0:00:14]} 35. Qb4 {[%clk 0:00:51]}  Kf7 {[%clk 0:00:12]} 36. Qc5 {[%clk 0:00:45]}  Ne2+ {[%clk 0:00:10]} 37. Kh2 {[%clk 0:00:36]}  Nxc3 {[%clk 0:00:11]} 38. Qxa7 {[%clk 0:00:34]}  Ne4 {[%clk 0:00:08]} 39. a6 {[%clk 0:00:32]}  Qa4 {[%clk 0:00:05]} 40. Qxb7 {[%clk 0:00:30]}  Qa1 {[%clk 0:00:06]} 41. Qxd5+ {[%clk 0:00:29]} 1-0


[Site "https://www.chess.com"]